fUST/lending_fUST_20240829
["ID","MTS","AMOUNT","RATE_DAILY","PERIOD"]
[336514983,1724887838424,-250.0,0.00018952,2]
[336514984,1724887838433,-1996.94999999,0.00018971,2]
[336514985,1724887838443,-1130.37954062,0.00018971,2]
[336514986,1724887838452,-500.0,0.00019,7]
[336514987,1724887838462,-500.0,0.00019,7]
[336514988,1724887838472,-500.0,0.00019,7]
[336514989,1724887838481,-500.0,0.00019,7]
[336514990,1724887838491,-500.0,0.00019,7]
[336514991,1724887838633,-500.0,0.00019,7]
[336514992,1724887838643,-500.0,0.00019,7]
[336514993,1724887838652,-500.0,0.00019,7]
[336514994,1724887838662,-500.0,0.00019,7]
[336514995,1724887838671,-500.0,0.00019,7]
[336514996,1724887838680,-500.0,0.00019,7]
[336514997,1724887838689,-399.33,0.00019,7]
[336514998,1724887838698,-500.0,0.00019,7]
[336514999,1724887838708,-500.0,0.00019,7]
[336515000,1724887838718,-500.0,0.00019,7]
[336515001,1724887838727,-500.0,0.00019,7]
[336515002,1724887838739,-553.66,0.00019,7]
[336515003,1724887838748,-250.0,0.00019002,2]
[336515004,1724887838757,-25114.15263,0.00019032,2]
[336515005,1724887838767,-250.0,0.00019052,2]
[336515006,1724887838776,-50228.30526,0.00019061,2]
[336515007,1724887838785,-151.0,0.00019061,2]
[336515008,1724887838794,-151.0,0.00019061,2]
[336515009,1724887838803,-151.0,0.00019061,2]
[336515010,1724887838814,-1130.37954058,0.00019066,2]
[336515011,1724887838825,-124205.92307471,0.00019071,2]
[336515012,1724887838845,-13272.84916539,0.00019071,2]
[336515013,1724887838855,-151.0,0.00019071,2]
[336515014,1724887838864,-374.19561041,0.00019071,2]
[336515027,1724887839992,-672.88436359,0.00019071,2]
[336515028,1724887840002,-1047.079974,0.00019071,2]
[336515029,1724887840011,-151.0,0.00019071,2]
[336515030,1724887840021,-151.0,0.00019071,2]
[336515031,1724887840030,-151.0,0.00019071,2]
[336515032,1724887840039,-151.0,0.00019071,2]
[336515033,1724887840048,-151.0,0.00019071,2]
[336515035,1724887840057,-151.0,0.00019071,2]
[336515037,1724887840066,-1106.79437493,0.00019078,2]
[336515039,1724887840075,-7704.59522536,0.00019078,2]
[336515057,1724887842923,-1465.07009517,0.00019078,2]
[336515136,1724887845932,-3745.87788747,0.00019078,2]
[336515249,1724887859096,396.19605032,0.00028767,120]
[336515250,1724887859118,547.07,0.00028767,120]
[336515251,1724887859138,547.07,0.00028767,120]
[336515252,1724887859159,285.44394968,0.00028767,120]
[336515277,1724888551718,261.62605032,0.000287,120]
[336515278,1724888551740,547.07,0.000287,120]
[336515279,1724888551763,547.07,0.000287,120]
[336515280,1724888551786,547.07,0.000287,120]
[336515281,1724888551809,308.16394968,0.000287,120]
[336515283,1724888652748,163.1743,0.00028493,120]
[336515285,1724888963140,-1069.42225307,0.0001,2]
[336515286,1724888963168,-192.17099863,0.00014147,2]
[336515287,1724888963190,-750.0,0.00014247,2]
[336515307,1724889034888,-300.0,0.00016887,2]
[336515308,1724889034897,-300.0,0.00016887,2]
[336515309,1724889034907,-647.21271139,0.00016888,2]
[336515529,1724889039964,-5034.30000012,0.00016888,2]
[336515530,1724889039978,-1479.9900254,0.00016888,2]
[336515852,1724889043087,-2424.33890158,0.00016888,2]
[336515857,1724889043125,-435.65805445,0.00016888,2]
[336516138,1724889045985,-13860.46163571,0.00016888,2]
[336522064,1724889116935,75.73175032,0.00028,120]
[336522068,1724889116959,466.97824968,0.00028,120]
[336527979,1724890015324,-750.0,0.00014247,2]
[336527980,1724890015350,-179.848496,0.00014247,2]
[336527981,1724890015374,-1977.86981402,0.00015972,2]
[336528248,1724890232069,-300.0,0.00015971,2]
[336528250,1724890232081,-300.0,0.00015971,2]
[336528252,1724890232092,-45.26340212,0.00015972,2]
[336528327,1724890240395,-1965.16002399,0.00015972,2]
[336528340,1724890243190,-2659.72903843,0.00015972,2]
[336528341,1724890243291,-18251.97772144,0.00015972,2]
[336528343,1724890243301,-671.575375,0.00016404,2]
[336528345,1724890243311,-250.0,0.00016521,2]
[336528346,1724890243321,-250.0,0.00016566,2]
[336528347,1724890243331,-250.0,0.00016612,2]
[336528348,1724890243341,-250.0,0.00016657,2]
[336528349,1724890243350,-250.0,0.00016702,2]
[336528350,1724890243360,-250.0,0.00016748,2]
[336528351,1724890243369,-250.0,0.00016793,2]
[336528352,1724890243380,-250.0,0.00016838,2]
[336528353,1724890243390,-250.0,0.00016884,2]
[336528354,1724890243400,-6890.72819132,0.00016919,5]
[336528355,1724890243467,-323.07981222,0.00016919,5]
[336528402,1724890246078,-224.19222626,0.00016919,5]
[336528403,1724890246087,-72.88102118,0.00016919,2]
[336528404,1724890246135,-3.0,0.00016919,2]
[336528407,1724890359504,80.09175032,0.00028767,120]
[336528408,1724890359528,547.07,0.00028767,120]
[336528409,1724890359552,547.07,0.00028767,120]
[336528410,1724890359576,547.07,0.00028767,120]
[336528411,1724890359603,547.07,0.00028767,120]
[336528412,1724890359626,547.07,0.00028767,120]
[336528413,1724890359650,547.07,0.00028767,120]
[336528414,1724890359674,547.07,0.00028767,120]
[336528415,1724890359697,547.07,0.00028767,120]
[336528416,1724890359720,547.07,0.00028767,120]
[336528417,1724890359742,547.07,0.00028767,120]
[336528418,1724890359766,547.07,0.00028767,120]
[336528419,1724890359789,547.07,0.00028767,120]
[336528420,1724890359811,547.07,0.00028767,120]
[336528421,1724890359834,547.07,0.00028767,120]
[336528422,1724890359856,547.07,0.00028767,120]
[336528423,1724890359880,547.07,0.00028767,120]
[336528424,1724890359901,547.07,0.00028767,120]
[336528425,1724890359923,547.07,0.00028767,120]
[336528426,1724890359944,547.07,0.00028767,120]
[336528427,1724890359966,547.07,0.00028767,120]
[336528428,1724890359987,547.07,0.00028767,120]
[336528429,1724890360009,547.07,0.00028767,120]
[336528430,1724890360036,547.07,0.00028767,120]
[336528431,1724890360058,547.07,0.00028767,120]
[336528432,1724890360080,547.07,0.00028767,120]
[336528433,1724890360102,547.07,0.00028767,120]
[336528434,1724890360124,547.07,0.00028767,120]
[336528435,1724890360146,547.07,0.00028767,120]
[336528436,1724890360167,547.07,0.00028767,120]
[336528437,1724890360190,547.07,0.00028767,120]
[336528438,1724890360212,547.07,0.00028767,120]
[336528439,1724890360234,547.07,0.00028767,120]
[336528440,1724890360258,547.07,0.00028767,120]
[336528441,1724890360278,547.07,0.00028767,120]
[336528442,1724890360300,547.07,0.00028767,120]
[336528443,1724890360322,547.07,0.00028767,120]
[336528444,1724890360346,547.07,0.00028767,120]
[336528445,1724890360368,547.07,0.00028767,120]
[336528446,1724890360390,547.07,0.00028767,120]
[336528447,1724890360412,547.07,0.00028767,120]
[336528448,1724890360434,547.07,0.00028767,120]
[336528449,1724890360457,547.07,0.00028767,120]
[336528450,1724890360479,547.07,0.00028767,120]
[336528451,1724890360502,547.07,0.00028767,120]
[336528452,1724890360526,547.07,0.00028767,120]
[336528453,1724890360551,1046.2,0.00028767,120]
[336528454,1724890360574,1046.2,0.00028767,120]
[336528455,1724890360599,1046.2,0.00028767,120]
[336528456,1724890360619,1046.2,0.00028767,120]
[336528457,1724890360640,1046.2,0.00028767,120]
[336528458,1724890360661,1046.2,0.00028767,120]
[336528459,1724890360686,1046.2,0.00028767,120]
[336528460,1724890360706,1046.2,0.00028767,120]
[336528461,1724890360730,1046.2,0.00028767,120]
[336528462,1724890360759,1046.2,0.00028767,120]
[336528463,1724890360786,1046.2,0.00028767,120]
[336528464,1724890360810,1046.2,0.00028767,120]
[336528465,1724890360836,1046.2,0.00028767,120]
[336528466,1724890360862,1046.2,0.00028767,120]
[336528467,1724890360889,1046.2,0.00028767,120]
[336528468,1724890360917,1046.2,0.00028767,120]
[336528469,1724890360944,738.88,0.00028767,120]
[336528470,1724890375137,258.904334,0.00028493,120]
[336528471,1724890449088,57564.77391568,0.00025,120]
[336528487,1724891348201,-750.0,0.00014247,2]
[336528488,1724891348227,-198.89981011,0.00015,7]
[336528516,1724891432173,-492.69254794,0.00015,7]
[336528562,1724891438561,-773.74169698,0.00015,7]
[336528563,1724891438573,-300.0,0.00016291,2]
[336528564,1724891438584,-8.63703273,0.00016291,2]
[336528565,1724891438598,-291.36296727,0.00016291,2]
[336528566,1724891438609,-294.63600564,0.00016292,2]
[336528588,1724891446268,-41.15168136,0.00016292,2]
[336528589,1724891446281,-470.46175834,0.00016292,2]
[336528590,1724891446297,-24429.53824166,0.00016292,2]
[336528591,1724891446309,-250.0,0.00017215,2]
[336528592,1724891446319,-250.0,0.00017261,2]
[336528593,1724891446331,-207.7743686,0.000173,2]
[336528594,1724891446342,-250.0,0.00017308,2]
[336528595,1724891446352,-250.0,0.00017355,2]
[336528596,1724891446363,-250.0,0.00017401,2]
[336528597,1724891446373,-250.0,0.00017448,2]
[336528598,1724891446385,-250.0,0.00017495,2]
[336528599,1724891446394,-250.0,0.00017542,2]
[336528600,1724891446403,-250.0,0.00017588,2]
[336528601,1724891446592,-250.0,0.00017635,2]
[336528602,1724891446610,-250.0,0.00017682,2]
[336528603,1724891446620,-250.0,0.00017728,2]
[336528604,1724891446630,-250.0,0.00017775,2]
[336528605,1724891446640,-420.0,0.00017806,2]
[336528606,1724891446649,-250.0,0.00017822,2]
[336528607,1724891446659,-250.0,0.00017869,2]
[336528608,1724891446668,-250.0,0.00017915,2]
[336528609,1724891446678,-420.0,0.0001792,2]
[336528610,1724891446687,-409.4159754,0.00018103,2]
[336528611,1724891446697,-153.0,0.00018103,2]
[336528612,1724891446706,-153.0,0.00018103,2]
[336528613,1724891446715,-409.4159754,0.00018103,2]
[336528614,1724891446724,-153.0,0.00018103,2]
[336528615,1724891446735,-409.4159754,0.00018103,2]
[336528616,1724891446744,-153.0,0.00018103,2]
[336528617,1724891446753,-409.303637,0.00018103,2]
[336528618,1724891446763,-153.0,0.00018103,2]
[336528619,1724891446773,-465.00739466,0.00018841,2]
[336528620,1724891446782,-535.264575,0.00018904,2]
[336528621,1724891446791,-1595.96221919,0.00019073,2]
[336528622,1724891446801,-2399.19759672,0.00019077,2]
[336528623,1724891446810,-996.11493741,0.00019078,2]
[336528624,1724891446819,-17084.456792,0.00019078,2]
[336528625,1724891446829,-3275.93367387,0.00019078,2]
[336528626,1724891446839,-1595.96221919,0.00019143,2]
[336528627,1724891446848,-693.561017,0.00019158,2]
[336528628,1724891446857,-693.561017,0.00019158,2]
[336528629,1724891446866,-151.0,0.00019158,2]
[336528630,1724891446877,-151.0,0.00019158,2]
[336528631,1724891446886,-693.561017,0.00019158,2]
[336528632,1724891446896,-693.561017,0.00019158,2]
[336528633,1724891446906,-151.0,0.00019158,2]
[336528634,1724891446916,-151.0,0.00019158,2]
[336528635,1724891446925,-151.0,0.00019158,2]
[336528636,1724891446934,-151.0,0.00019158,2]
[336528637,1724891446943,-296.425202,0.00019158,2]
[336528638,1724891446957,-213.462844,0.00019158,2]
[336528639,1724891446967,-151.0,0.00019158,2]
[336528640,1724891446976,-151.0,0.00019158,2]
[336528641,1724891446985,-209.980928,0.00019158,2]
[336528642,1724891446995,-209.980928,0.00019158,2]
[336528643,1724891447005,-209.980928,0.00019158,2]
[336528644,1724891447016,-209.980928,0.00019158,2]
[336528645,1724891447026,-151.0,0.00019158,2]
[336528646,1724891447038,-151.0,0.00019158,2]
[336528647,1724891447049,-944.726842,0.00019158,2]
[336528648,1724891447060,-944.726842,0.00019158,2]
[336528649,1724891447071,-944.726842,0.00019158,2]
[336528650,1724891447080,-944.726842,0.00019158,2]
[336528651,1724891447090,-259.382331,0.00019158,2]
[336528652,1724891447100,-259.382331,0.00019158,2]
[336528653,1724891447109,-259.382331,0.00019158,2]
[336528654,1724891447118,-259.382331,0.00019158,2]
[336528655,1724891447129,-151.0,0.00019158,2]
[336528656,1724891447138,-151.0,0.00019158,2]
[336528657,1724891447148,-151.0,0.00019158,2]
[336528658,1724891447157,-151.0,0.00019158,2]
[336528659,1724891447166,-151.0,0.00019158,2]
[336528660,1724891447176,-276.727212,0.00019158,2]
[336528661,1724891447185,-151.0,0.00019158,2]
[336528662,1724891447194,-151.0,0.00019158,2]
[336528663,1724891447204,-151.0,0.00019158,2]
[336528664,1724891447213,-519.248805,0.00019158,2]
[336528665,1724891447225,-519.248805,0.00019158,2]
[336528666,1724891447234,-151.0,0.00019158,2]
[336528667,1724891447244,-151.0,0.00019158,2]
[336528668,1724891447254,-519.248805,0.00019158,2]
[336528669,1724891447263,-519.248805,0.00019158,2]
[336528670,1724891447272,-151.0,0.00019158,2]
[336528671,1724891447282,-151.0,0.00019158,2]
[336528672,1724891447291,-151.0,0.00019158,2]
[336528673,1724891447300,-151.0,0.00019158,2]
[336528674,1724891447310,-394.904999,0.00019158,2]
[336528675,1724891447320,-394.904999,0.00019158,2]
[336528676,1724891447329,-394.904999,0.00019158,2]
[336528677,1724891447339,-394.904999,0.00019158,2]
[336528678,1724891447348,-151.0,0.00019158,2]
[336528679,1724891447358,-151.0,0.00019158,2]
[336528680,1724891447367,-151.0,0.00019158,2]
[336528681,1724891447376,-224.221388,0.00019158,2]
[336528682,1724891447387,-151.0,0.00019158,2]
[336528683,1724891447396,-151.0,0.00019158,2]
[336528684,1724891447406,-237.67229255,0.00019167,2]
[336528685,1724891447415,-21347.0297355,0.00019168,2]
[336528686,1724891447425,-3719.0001149,0.00019168,5]
[336528687,1724891447434,-151.0,0.00019168,2]
[336528688,1724891447444,-151.0,0.00019168,2]
[336528689,1724891447454,-151.0,0.00019168,2]
[336528690,1724891447463,-151.0,0.00019168,2]
[336528691,1724891447473,-151.0,0.00019168,2]
[336528692,1724891447482,-151.0,0.00019168,2]
[336528693,1724891447491,-282.76166,0.00019168,2]
[336528694,1724891447501,-151.0,0.00019168,2]
[336528695,1724891447511,-151.0,0.00019168,2]
[336528696,1724891447520,-277.514836,0.00019168,2]
[336528697,1724891447530,-693.561017,0.00019168,2]
[336528698,1724891447539,-693.561017,0.00019168,2]
[336528699,1724891447549,-151.0,0.00019168,2]
[336528700,1724891447559,-151.0,0.00019168,2]
[336528701,1724891447568,-693.561017,0.00019168,2]
[336528702,1724891447578,-693.561017,0.00019168,2]
[336528703,1724891447587,-237.58802,0.00019168,2]
[336528704,1724891447597,-200.092343,0.00019168,2]
[336528705,1724891447606,-209.980928,0.00019168,2]
[336528706,1724891447616,-209.980928,0.00019168,2]
[336528707,1724891447627,-209.980928,0.00019168,2]
[336528708,1724891447636,-209.980928,0.00019168,2]
[336528709,1724891447646,-151.0,0.00019168,2]
[336528710,1724891447657,-151.0,0.00019168,2]
[336528711,1724891447667,-944.726842,0.00019168,2]
[336528712,1724891447676,-944.726842,0.00019168,2]
[336528713,1724891447687,-944.726842,0.00019168,2]
[336528714,1724891447696,-944.726842,0.00019168,2]
[336528715,1724891447706,-259.382331,0.00019168,2]
[336528716,1724891447715,-259.382331,0.00019168,2]
[336528717,1724891447725,-259.382331,0.00019168,2]
[336528718,1724891447734,-259.382331,0.00019168,2]
[336528719,1724891447744,-151.0,0.00019168,2]
[336528720,1724891447754,-151.0,0.00019168,2]
[336528721,1724891447763,-151.0,0.00019168,2]
[336528722,1724891447773,-151.0,0.00019168,2]
[336528723,1724891447783,-151.0,0.00019168,2]
[336528724,1724891447793,-151.0,0.00019168,2]
[336528725,1724891447802,-519.248805,0.00019168,2]
[336528726,1724891447813,-519.248805,0.00019168,2]
[336528727,1724891447824,-519.248805,0.00019168,2]
[336528728,1724891447834,-519.248805,0.00019168,2]
[336528729,1724891447844,-151.0,0.00019168,2]
[336528730,1724891447853,-151.0,0.00019168,2]
[336528731,1724891447864,-151.0,0.00019168,2]
[336528732,1724891447873,-151.0,0.00019168,2]
[336528733,1724891447883,-394.904999,0.00019168,2]
[336528734,1724891447893,-394.904999,0.00019168,2]
[336528735,1724891447902,-394.904999,0.00019168,2]
[336528736,1724891447912,-394.904999,0.00019168,2]
[336528737,1724891447921,-151.0,0.00019168,2]
[336528738,1724891447931,-151.0,0.00019168,2]
[336528739,1724891447941,-151.0,0.00019168,2]
[336528740,1724891447952,-151.0,0.00019168,2]
[336528741,1724891447966,-490.194291,0.00019168,2]
[336528742,1724891447975,-151.0,0.00019168,2]
[336528743,1724891447985,-490.194291,0.00019168,2]
[336528744,1724891447995,-192123.267619,0.00019168,2]
[336528745,1724891448006,-500.0,0.00019173,2]
[336528746,1724891448016,-500.0,0.00019173,2]
[336528747,1724891448026,-29375.01942743,0.00019178,5]
[336528748,1724891448038,-151.0,0.00019178,2]
[336528749,1724891448048,-500.0,0.00019178,2]
[336528750,1724891448058,-500.0,0.00019178,2]
[336528751,1724891448068,-500.0,0.00019178,2]
[336528752,1724891448077,-151.0,0.00019178,2]
[336528753,1724891448087,-500.0,0.00019178,2]
[336528754,1724891448096,-500.0,0.00019178,2]
[336528755,1724891448106,-500.0,0.00019178,2]
[336528756,1724891448116,-500.0,0.00019178,2]
[336528757,1724891448127,-500.0,0.00019178,2]
[336528758,1724891448139,-500.0,0.00019178,2]
[336528759,1724891448149,-500.0,0.00019178,2]
[336528760,1724891448158,-409.87396683,0.00019178,2]
[336528794,1724892638531,-192.17099863,0.00014147,2]
[336528795,1724892638541,-351.28270853,0.00014147,2]
[336528796,1724892638551,-934.60967108,0.00014147,2]
[336528797,1724892638561,-166.695089,0.00014247,2]
[336528798,1724892638571,-712.5,0.00014247,2]
[336528799,1724892638580,-954.9514291,0.00014671,2]
[336528800,1724892638589,-300.0,0.00015541,2]
[336528801,1724892638599,-300.0,0.00015541,2]
[336528802,1724892638608,-13888.7466201,0.00015542,2]
[336528803,1724892638618,-24900.0,0.00015761,2]
[336528804,1724892638628,-169.54206732,0.000158,2]
[336528805,1724892638637,-167.893844,0.00015841,2]
[336528806,1724892638647,-250.0,0.00016554,2]
[336528807,1724892638656,-250.0,0.00016599,2]
[336528808,1724892638666,-250.0,0.00016645,2]
[336528809,1724892638674,-250.0,0.0001669,2]
[336528810,1724892638684,-250.0,0.00016735,2]
[336528811,1724892638694,-250.0,0.00016781,2]
[336528812,1724892638703,-250.0,0.00016826,2]
[336528813,1724892638713,-250.0,0.00016872,2]
[336528814,1724892638722,-250.0,0.00016917,2]
[336528815,1724892638732,-250.0,0.00016962,2]
[336528816,1724892638742,-420.0,0.00016999,2]
[336528817,1724892638751,-250.0,0.00017008,2]
[336528818,1724892638760,-250.0,0.00017053,2]
[336528820,1724892638771,-420.0,0.00017095,2]
[336528822,1724892638781,-250.0,0.00017099,2]
[336528823,1724892638790,-250.0,0.00017144,2]
[336528824,1724892638800,-250.0,0.00017189,2]
[336528825,1724892638809,-250.0,0.00017235,2]
[336528826,1724892638819,-250.0,0.0001728,2]
[336528827,1724892638828,-250.0,0.00017326,2]
[336528828,1724892638837,-250.0,0.00017371,2]
[336528829,1724892638848,-250.0,0.00017416,2]
[336528830,1724892638857,-500.0,0.00018178,7]
[336528831,1724892638866,-500.0,0.00018178,7]
[336528832,1724892638875,-500.0,0.00018178,7]
[336528833,1724892638884,-500.0,0.00018178,7]
[336528834,1724892638893,-500.0,0.00018178,7]
[336528835,1724892638902,-500.0,0.00018178,7]
[336528836,1724892638911,-500.0,0.00018178,7]
[336528837,1724892638921,-500.0,0.00018178,7]
[336528838,1724892638930,-500.0,0.00018178,7]
[336528839,1724892638940,-500.0,0.00018178,7]
[336528840,1724892638950,-553.66,0.00018178,7]
[336528841,1724892638960,-500.0,0.00018178,7]
[336528842,1724892638970,-500.0,0.00018178,7]
[336528843,1724892638980,-500.0,0.00018178,7]
[336528844,1724892638989,-500.0,0.00018178,7]
[336528845,1724892638999,-399.33,0.00018178,7]
[336528846,1724892639008,-500.0,0.00018178,7]
[336528847,1724892639019,-587.0,0.00018594,2]
[336528848,1724892639029,-587.0,0.00018804,2]
[336528849,1724892639038,-528.227226,0.00018904,2]
[336528850,1724892639047,-5602.42127415,0.00018945,2]
[336528851,1724892639056,-1996.94999999,0.00018952,2]
[336528852,1724892639066,-14440.6377623,0.00019042,2]
[336528853,1724892639075,-166.37060479,0.00019051,2]
[336528854,1724892639084,-82489.72797078,0.00019052,2]
[336528855,1724892639093,-151.0,0.00019052,2]
[336528856,1724892639102,-151.0,0.00019052,2]
[336528857,1724892639111,-151.0,0.00019052,2]
[336528858,1724892639120,-1409.72914777,0.00019073,2]
[336528859,1724892639130,-896.50344366,0.00019078,2]
[336528860,1724892639139,-14440.6377623,0.00019089,2]
[336528861,1724892639148,-761.07052102,0.000191,3]
[336528862,1724892639158,-151.0,0.00019158,2]
[336528863,1724892639167,-151.0,0.00019158,2]
[336528864,1724892639176,-151.0,0.00019158,2]
[336528865,1724892639186,-151.0,0.00019158,2]
[336528866,1724892639195,-151.0,0.00019158,2]
[336528867,1724892639205,-14440.6377623,0.00019158,2]
[336528868,1724892639214,-441.174862,0.00019167,2]
[336528869,1724892639223,-441.174862,0.00019167,2]
[336528870,1724892639232,-151.0,0.00019167,2]
[336528871,1724892639241,-151.0,0.00019167,2]
[336528872,1724892639251,-151.0,0.00019167,2]
[336528873,1724892639260,-151.0,0.00019167,2]
[336528874,1724892639270,-151.0,0.00019167,2]
[336528875,1724892639280,-151.0,0.00019167,2]
[336528876,1724892639289,-151.0,0.00019167,2]
[336528877,1724892639298,-327.470318,0.00019167,2]
[336528878,1724892639307,-327.470318,0.00019167,2]
[336528879,1724892639316,-151.0,0.00019167,2]
[336528880,1724892639326,-192.787368,0.00019167,2]
[336528881,1724892639338,-192.787368,0.00019167,2]
[336528882,1724892639348,-151.0,0.00019167,2]
[336528883,1724892639357,-441.174862,0.00019168,2]
[336528884,1724892639366,-441.174862,0.00019168,2]
[336528885,1724892639376,-151.0,0.00019168,2]
[336528886,1724892639385,-151.0,0.00019168,2]
[336528887,1724892639396,-416.13661,0.00019168,2]
[336528888,1724892639406,-234.663352,0.00019168,2]
[336528889,1724892639416,-416.13661,0.00019168,2]
[336528890,1724892639426,-151.0,0.00019168,2]
[336528891,1724892639435,-566.836105,0.00019168,2]
[336528892,1724892639444,-566.836105,0.00019168,2]
[336528893,1724892639454,-151.0,0.00019168,2]
[336528894,1724892639464,-158.477762,0.00019168,2]
[336528895,1724892639474,-151.0,0.00019168,2]
[336528896,1724892639483,-151.0,0.00019168,2]
[336528897,1724892639492,-151.0,0.00019168,2]
[336528898,1724892639502,-151.0,0.00019168,2]
[336528899,1724892639512,-151.0,0.00019168,2]
[336528900,1724892639524,-327.470318,0.00019168,2]
[336528901,1724892639533,-327.470318,0.00019168,2]
[336528902,1724892639543,-151.0,0.00019168,2]
[336528903,1724892639552,-192.787368,0.00019168,2]
[336528904,1724892639562,-192.787368,0.00019168,2]
[336528905,1724892639571,-151.0,0.00019168,2]
[336528906,1724892639581,-151.0,0.00019168,2]
[336528907,1724892639590,-151.0,0.00019168,2]
[336528908,1724892639602,-129965.739861,0.00019168,2]
[336528909,1724892639612,-500.0,0.00019173,2]
[336528910,1724892639621,-154.74467129,0.00019173,2]
[336528911,1724892639631,-2399.19759673,0.00019177,2]
[336528912,1724892639641,-9297.50028725,0.00019178,5]
[336528913,1724892639650,-7342.58407378,0.00019178,5]
[336528926,1724892643522,-1799.39819754,0.00019177,2]
[336528927,1724892643531,-7344.92563994,0.00019178,5]
[336528928,1724892643540,-500.0,0.00019178,2]
[336528929,1724892643550,-151.0,0.00019178,2]
[336528930,1724892643559,-151.0,0.00019178,2]
[336528931,1724892643568,-199.661289,0.00019178,2]
[336528932,1724892643577,-500.0,0.00019178,2]
[336528933,1724892643587,-500.0,0.00019178,2]
[336528934,1724892643596,-368.20025117,0.00019178,2]
[336528935,1724892643605,-500.0,0.00019178,2]
[336528936,1724892643614,-500.0,0.00019178,2]
[336528938,1724892643623,-500.0,0.00019178,2]
[336528939,1724892643633,-500.0,0.00019178,2]
[336528940,1724892643643,-500.0,0.00019178,2]
[336528941,1724892643652,-500.0,0.00019178,2]
[336528942,1724892643662,-500.0,0.00019178,2]
[336528943,1724892643671,-500.0,0.00019178,2]
[336528944,1724892643680,-500.0,0.00019178,2]
[336528945,1724892643689,-500.0,0.00019178,2]
[336528946,1724892643698,-500.0,0.00019178,2]
[336528947,1724892643708,-500.0,0.00019178,2]
[336528948,1724892643717,-500.0,0.00019178,2]
[336528949,1724892643726,-500.0,0.00019178,2]
[336528950,1724892643735,-500.0,0.00019178,2]
[336528951,1724892643744,-500.0,0.00019178,2]
[336528952,1724892643753,-500.0,0.00019178,2]
[336528953,1724892643762,-500.0,0.00019178,2]
[336528955,1724892643772,-522.08976972,0.00019178,2]
[336528956,1724892643781,-500.0,0.00019178,2]
[336528957,1724892643790,-500.0,0.00019178,2]
[336528958,1724892643800,-500.0,0.00019178,2]
[336528959,1724892643809,-500.0,0.00019178,2]
[336528960,1724892643818,-500.0,0.00019178,2]
[336528961,1724892643828,-500.0,0.00019178,2]
[336528962,1724892643837,-500.0,0.00019178,2]
[336528963,1724892643847,-552.58567458,0.00019178,2]
[336528964,1724892643857,-500.0,0.00019178,2]
[336528965,1724892643867,-538.93126061,0.00019178,2]
[336528966,1724892643876,-500.0,0.00019178,2]
[336528967,1724892643885,-500.0,0.00019178,2]
[336528968,1724892643894,-500.0,0.00019178,2]
[336528969,1724892643904,-500.0,0.00019178,2]
[336528970,1724892643913,-500.0,0.00019178,2]
[336528971,1724892643922,-500.0,0.00019178,2]
[336528972,1724892643931,-500.0,0.00019178,2]